Workbook

Sheet Instructions
H4: REMEMBER
G6: In order to Print a specific budget
C7: Budget | D7: Button | G7: you must Calculate before you
C8: Type | G8: Print that particular budget.
C10: TOTAL
C11: COST
C13: CASH
C14: FLOW
C16: VARIABLE
C17: COST
C19: Note: Be sure to enable all
C20: macros on start-up.

Sheet Main
B1: Stockering Steers | U1: 3
B2: Levi Russell, Lawton Stewart, and Dennis Hancock
B3: Agricultural & Applied Economics, Animal & Dairy Sciences, and Crop and Soil Sciences Departments
X5: 1 | Y5: 2 | Z5: 3
B6: University of Georgia Cooperative Extension Service
Z7: (Total Cost Budget)
B8: February 2018 | Z8: (Cash Flow Budget)
Z9: (Variable Cost Budget)
B11: INPUT DATA: Your values in the unprotected or highlighted cells | Z11: RISK RATED RETURNS OVER TOTAL COST
Z12: RISK RATED RETURNS OVER CASH FLOW COST
Z13: RISK RATED RETURNS OVER VARIABLE COST
B16: Stockering 500 pound Steers
B17: (Variable Cost Budget)
B19: NUMBER OF ACRES | F19: 50 | H19: In Date | J19: 2018-10-15
B20: STOCKING RATE (HEAD/ACRE) | F20: 2 | H20: Out Date | J20: =+J19+F24 -> 2019-03-14
B21: NUMBER OF CALVES PLACED | F21: =F19*F20 -> 100
B22: DEATH LOSS (%) | F22: 1
B23: NUMBER OF CALVES SOLD | F23: =+F21*((100-F22)/100) -> 99
B24: FEEDING PERIOD (DAYS) | F24: 150
F26: BEST | G26: OPT. | H26: MEDIAN | I26: PESS. | J26: WORST
B27: PAYWEIGHT TO PAYWEIGHT | F27: 3 | G27: =+H27+0.25 -> 2.25 | H27: 2 | I27: =+H27-0.25 -> 1.75 | J27: 1.5
B28: DAILY GAIN (LBS./DAY)
B29: NET SELLING WEIGHT (CWT.) | F29: =((F27*F24)/100+F36) -> 9.5 | G29: =(G27*F24/100+F36) -> 8.375 | H29: =(H27*F24/100+F36) -> 8 | I29: =(I27*F24/100+F36) -> 7.625 | J29: =(J27*F24/100+F36) -> 7.25
B30: SELLING PRICE ($/CWT.) | F30: 126 | G30: =+(F30+H30)/2 -> 130 | H30: 134 | I30: =+(H30+J30)/2 -> 136 | J30: 138
B32: Item | E32: Unit | F32: Units Per Head | G32: Total Quantity (units) | H32: Unit Price ($/Unit) | I32: Total Amount
B35: VARIABLE COSTS:
B36: CALF | E36: CWT. | F36: 5 | G36: =+F36*placed -> 500 | H36: 156 | I36: =G36*H36 -> 78000
A37: Procurement Detail | B37: PROCUREMENT COST | E37: HEAD | F37: 1 | G37: 100 | H37: =+Procurement!H10 -> 11.29411765 | I37: 1129.411765
A38: Winter Grazing Detail | B38: WINTER GRAZING | E38: ACRE | F38: 0.6 | G38: 60 | H38: =+tvc_grazing/ACRES -> 80.44061644 | I38: 4826.436986
B39: SUPPLEMENTAL HAY | E39: TON | F39: 0.15 | G39: 15 | H39: 130 | I39: 1950
A40: Ration Detail | B40: RATION 1 | E40: HEAD | F40: 1 | G40: 100 | H40: =Rations!L13 -> 90.34347656 | I40: =G40*H40 -> 9034.347656
B41: RATION 2 | E41: HEAD | F41: 1 | G41: 100 | H41: =Rations!L27 -> 0 | I41: =G41*H41 -> 0
B42: RATION 3 | E42: HEAD | F42: 1 | G42: 100 | H42: =Rations!L41 -> 0 | I42: 0
B43: MINERAL + IONOPHORE | E43: LBS. | F43: =+F24*0.25 -> 37.5 | G43: 3750 | H43: 0.28 | I43: 1050 | Q43: *
B44: MEDICATION,WORM,VAC. | E44: HEAD | F44: 2 | G44: 200 | H44: 4 | I44: 800
B45: GROW.STIMULANT | E45: IMPLANT | F45: 2 | G45: 200 | H45: 1 | I45: 200
B46: REPAIRS | E46: HEAD | F46: 1 | G46: 100 | H46: =AVERAGE(Fixed_Cost!F30:G31)*0.02/Fixed_Cost!G6 -> 0.8023076923 | I46: 80.23076923
B47: LAND RENTAL | E47: ACRE | F47: 0.5 | G47: 50 | H47: 25 | I47: 1250
B48: LABOR | E48: HRS. | F48: 1.25 | G48: 125 | H48: 0 | I48: 0
B49: DEATH LOSS | E49: PERCENT | F49: 0.01 | G49: =+SUM(I36:I48) -> 98320.42718 | H49: =+G49*F49 -> 983.2042718 | I49: =+F49*G49 -> 983.2042718
B50: INTEREST ON CALF | E50: PERCENT | F50: 0.04 | G50: =+I36*0.5 -> 39000 | H50: =+(FEEDING_PERIOD/365*F50) -> 0.01643835616 | I50: =+H50*G50 -> 641.0958904
B51: INTEREST ON OTHER EXPENSES | E51: PERCENT | F51: 0.04 | G51: =+(SUM(I37:I49)-I38)*0.5 -> 8238.597231 | H51: =+(FEEDING_PERIOD/365*F51) -> 0.01643835616 | I51: =+H51*G51 -> 135.4289956
A52: Auction & Hauling Detail | B52: AUCTION AND HAULING | E52: HEAD | F52: 1 | G52: =F52*F21 -> 100 | H52: =+mktng_cst -> 21.44 | I52: =G52*H52 -> 2144
B54: TOTAL VARIABLE COST | I54: =SUM(I36:I52) -> 102224.1563
B56: =+IF(bud_type=3,"No Fixed Costs for Variable Cost Budget","FIXED COST:(Click Appropriate Link at Left for Annual Fixed Cost)") -> No Fixed Costs for Variable Cost Budget
A57: Total Cost | B57: =+IF(bud_type=1,"Total Cattle Equipment Fixed Costs",IF(bud_type=2,"Total Fixed Cash Payments","")) ->  | E57: =+IF(bud_type<>3,"Head Sold","") ->  | F57: =+IF(bud_type<>3,+ROUNDUP(sold,0),0) -> 0 | H57: =+IF(bud_type<>3,I57/sold,0) -> 0 | I57: =+IF(bud_type=1,cattle_fixed,IF(bud_type=2,cf_total,0)) -> 0
A58: Cash Flow | B58: =+IF(bud_type=1,"Total Machinery Fixed Costs","") ->  | E58: =+IF(bud_type=1,"Acres","") ->  | F58: =+IF(bud_type=1,ACRES,0) -> 0 | H58: =+IF(bud_type=1,I58/ACRES,0) -> 0 | I58: =+IF(bud_type=1,mach_fixed,0) -> 0
B59: =+IF(bud_type=1,"Overhead","") ->  | E59: =+IF(bud_type=1,"Head Sold","") ->  | F59: =+IF(bud_type=1,+ROUNDUP(sold,0),0) -> 0 | H59: 0 | I59: =+IF(bud_type=1,H59*F59,0) -> 0
B60: =+IF(bud_type=1,"Management ","") ->  | E60: =+IF(bud_type=1,"% of Value Added","") ->  | F60: =+IF(bud_type=1,(H90-I36),0) -> 0 | H60: 0.06 | I60: =+IF(bud_type=1,H60*F60,0) -> 0
B61: =+IF(bud_type=1,"Land","") ->  | E61: =+IF(bud_type=1,"Acres","") ->  | F61: =+IF(bud_type=1,ACRES,0) -> 0 | H61: 0 | I61: =+IF(bud_type=1,H61*F61,0) -> 0
B62: TOTAL FIXED COST | I62: =SUM(I57:I61) -> 0
B64: COST OF GAIN SUMMARY AND MAX. BREAKEVEN CALF PRICE
I65: $/CWT.
B66: FEED ONLY COST OF GAIN ($/CWT.) | I66: =SUM(I38:I43)/(D90-G36) -> 57.16101516
B67: FEEDING COST OF GAIN ($/CWT.) | I67: =+(+I54-I36-I37-I52)/(D90-G36) -> 71.02669617
B68: TOTAL COST OF GAIN ($/CWT.) | I68: =+(+F82-I36)/(D90-G36) -> 82.12413579
B70: MAX. BREAKEVEN PURCHASE PRICE OF CALF (MEDIAN SCENARIO) | I70: =+(+H90-(+F82-I36))/G36 -> 163.5542869
B73: EXPECTED BREAKEVEN TABLE
B75: ITEM | E75: TOTAL AMOUNT | H75: $ / CWT. | I75: $/HD.
B76: VARIABLE COST | F76: =I54 -> 102224.1563 | H76: =F76/(U170*F21) -> 127.3028099 | I76: =+F76/sold -> 1032.567236
B77: =+B57 ->  | F77: =IF(I57>0,I57,0) -> 0 | H77: =IF(F77>0,F77/(U170*F21),0) -> 0 | I77: 0
B78: =+B58 ->  | F78: =I58 -> 0 | H78: =F78/(U170*F21) -> 0 | I78: 0
B79: =+B59 ->  | F79: =I59 -> 0 | H79: =F79/(U170*F21) -> 0 | I79: 0
B80: =+B60 ->  | F80: =I60 -> 0 | H80: =F80/(U170*F21) -> 0 | I80: 0
B81: =+B61 ->  | F81: =I61 -> 0 | H81: =F81/(U170*F21) -> 0 | I81: 0
B82: TOTAL COST | F82: =SUM(F76:F81) -> 102224.1563 | H82: =F82/(U170*F21) -> 127.3028099 | I82: 1032.567236
B85: EXPECTED RETURN TABLE
E86: =+sold -> 99 | F86: head sold
B88: EXP. WEIGHT | D88: TOTAL WEIGHT | F88: EXP. PRICE | H88: TOTAL RETURN
B89: (cwt./hd.) | D89: (cwt.) | F89: ($/cwt.)
B90: =+U170 -> 8.03 | D90: =+B90*sold -> 794.97 | F90: =+W170 -> 133.34 | H90: =+F90*D90 -> 106001.2998
B92: RISK RATED RETURNS OVER VARIABLE COST
B93: RISK RATED RETURNS OVER VARIABLE COST
B95: Net return levels (TOP ROW);
B96: The chances of obtaining this level or more (MIDDLE ROW); and
B97: The chances of obtaining this level or less (BOTTOM ROW).
E99: Optimistic | G99: Expected | I99: Pessimistic
B100: Returns | D100: =U209:U209+1.5*W208:W208 -> 15937.59362 | E100: =U209:U209+W208:W208 -> 12241.01697 | F100: =U209:U209+0.5*W208:W208 -> 8544.440316 | G100: =U209:U209 -> 4847.863666 | H100: =U209:U209-0.5*W209:W209 -> 1832.607776 | I100: =U209:U209-W209:W209 -> -1182.648114 | J100: =U209:U209-1.5*W209:W209 -> -4197.904003
B101: Chances | D101: =IF(V212<1,IF(U212,Z212,1-Z212),IF(U212,Z213,1-Z213)) -> 0.07537342714 | E101: =IF(AB212<1,IF(AA212,AF212,1-AF212),IF(AA212,AF213,1-AF213)) -> 0.1585868588 | F101: =IF(AH212<1,IF(AG212,AL212,1-AL212),IF(AG212,AL213,1-AL213)) -> 0.2843036978 | G101: =IF(V214<1,IF(U214,Z214,1-Z214),IF(U214,Z215,1-Z215)) -> 0.4733938036 | H101: =IF(AB214<1,IF(AA214,AF214,1-AF214),IF(AA214,AF215,1-AF215)) -> 0.6620234661 | I101: =IF(AH214<1,IF(AG214,AL214,1-AL214),IF(AG214,AL215,1-AL215)) -> 0.8412542118 | J101: =IF(V216<1,IF(U216,Z216,1-Z216),IF(U216,Z217,1-Z217)) -> 0.9443591084
B102: Chances | D102: =IF(V212<1,IF(U212,1-Z212,Z212),IF(U212,1-Z213,Z213)) -> 0.9246265729 | E102: =IF(AB212<1,IF(AA212,1-AF212,AF212),IF(AA212,1-AF213,AF213)) -> 0.8414131412 | F102: =IF(AH212<1,IF(AG212,1-AL212,AL212),IF(AG212,1-AL213,AL213)) -> 0.7156963022 | G102: =IF(V214<1,IF(U214,1-Z214,Z214),IF(U214,1-Z215,Z215)) -> 0.5266061964 | H102: =IF(AB214<1,IF(AA214,1-AF214,AF214),IF(AA214,1-AF215,AF215)) -> 0.3379765339 | I102: =IF(AH214<1,IF(AG214,1-AL214,AL214),IF(AG214,1-AL215,AL215)) -> 0.1587457882 | J102: =IF(V216<1,IF(U216,1-Z216,Z216),IF(U216,1-Z217,Z217)) -> 0.05564089159
B104: CHANCE FOR PROFIT | E104: =IF(AB216<1,IF(AA216,AF216,1-AF216),IF(AA216,AF217,1-AF217)) -> 0.7760398169 | F104: BASE BUDGETED NET REVENUE | J104: =+ENR -> 4847.863666
F105: Profit (Loss) Per Head Placed | J105: =+J104/placed -> 48.47863666
B107: PROFIT IS RETURN TO RISK AND ALL "ZERO" ITEMS IN THE BUDGET.
B108: MAY ENTER YOUR OWN VALUES.
T155: * | U155: Must match budget Entries | Y155: * | AV155: 1
T156: * | U156: - | Y156: *
T157: * | U157: =+F21 -> 100 | V157: HEAD | Y157: *
T158: * | U158: =+F29 -> 9.5 | V158: Best Y | W158: =+F30 -> 126 | X158: Best P | Y158: *
P159: % | T159: * | U159: =+G29 -> 8.375 | V159: Opt. Y | W159: =+G30 -> 130 | X159: Opt. P | Y159: *
T160: * | U160: =+H29 -> 8 | V160: Med. Y | W160: =H30 -> 134 | X160: Med. P | Y160: *
T161: * | U161: =+I29 -> 7.625 | V161: Pess. Y | W161: =I30 -> 136 | X161: Pess. P | Y161: *
T162: * | U162: =+J29 -> 7.25 | V162: Worst Y | W162: =J30 -> 138 | X162: Worst P | Y162: *
T163: * | U163: 0 | V163: H&MC | Y163: *
T164: * | U164: =+F82 -> 102224.1563 | V164: T.C. | Y164: *
T165: * | U165: * | Y165: *
T166: : | U166: - | Y166: :
T168: : | V168: Calculations | Y168: :
T169: : | U169: - | Y169: :
T170: : | U170: =0.04*U158+0.25*U159+0.42*U160+0.25*U161+0.04*U162 -> 8.03 | V170: Exp. Y | W170: =0.04*W158+0.25*W159+0.42*W160+0.25*W161+0.04*W162 -> 133.34 | X170: Exp. P | Y170: :
T171: : | U171: =0.25*(U158-U170)+0.5*(U159-U170) -> 0.54 | V171: SYO | W171: =0.25*(W158-W170)+0.5*(W159-W170) -> -3.505 | X171: SPO | Y171: :
T172: : | U172: =0.25*(U170-U162)+0.5*(U170-U161) -> 0.3975 | V172: SYP | W172: =0.25*(W170-W162)+0.5*(W170-W161) -> -2.495 | X172: SPP | Y172: :
T182: : | U182: =U171^2 -> 0.2916 | V182: VYO | W182: =W171^2 -> 12.285025 | X182: VPO | Y182: :
T183: : | U183: =U172^2 -> 0.15800625 | V183: VYP | W183: =W172^2 -> 6.225025 | X183: VPP | Y183: :
T184: : | U184: - | Y184: :
T185: : | U185: =(U170^2*W182)+(W170-U163)^2*U182 -> 5976.667881 | V185: VTRHH | W185: =(U170^2*W183)+(W170-U163)^2*U183 -> 3210.676122 | X185: VTRLL | Y185: :
T186: : | U186: =(U170^2*W182)+(W170-U163)^2*U183 -> 3601.430376 | V186: VTRHL | W186: =U170^2*W183+(W170-U163)^2*U182 -> 5585.913627 | X186: VTRLH | Y186: :
T187: : | U187: =SQRT(U185) -> 77.30891204 | V187: STRHH | W187: =SQRT(W185) -> 56.66282839 | X187: STRLL | Y187: :
T189: : | U189: =SQRT(U186) -> 60.01191861 | V189: STRHL | W189: =SQRT(W186) -> 74.73896994 | X189: STRLH | Y189: :
T190: : | U190: =0.66*U187+0.17*U189+0.17*W189 -> 73.931533 | V190: STRO | W190: =0.66*W187+0.17*U189+0.17*W189 -> 60.30511779 | X190: STRP | Y190: :
T191: : | U191: - | Y191: :
T192: : | U192: Calculation of NR and for Z values | Y192: :
T202: : | U202: - | Y202: :
T203: : | U203: =W160 -> 134 | V203: MP | W203: =+U209-U207 -> 449.6717019 | X203: ENR_MNR | Y203: : | AO203: 1
T204: : | U204: =U160 -> 8 | V204: MY | W204: =U157*U187 -> 7730.891204 | X204: STRHH | Y204: :
T205: : | U205: =+U208+0.33*(W209-W208) -> 106622.3483 | V205: MTR | W205: =U157*W187 -> 5666.282839 | X205: STRLL | Y205: :
T206: : | U206: =+F82 -> 102224.1563 | V206: MTC | W206: =U157*U189 -> 6001.191861 | X206: STRHL | Y206: :
T207: : | U207: =U205-U206 -> 4398.191964 | V207: MNR | W207: =U157*W189 -> 7473.896994 | X207: STRLH | Y207: :
T208: : | U208: =U157*U170*W170 -> 107072.02 | V208: ETR | W208: =U157*U190 -> 7393.1533 | X208: STRO | Y208: :
T209: : | U209: =U208-U206 -> 4847.863666 | V209: ENR | W209: =U157*W190 -> 6030.511779 | X209: STRP | Y209: :
T210: : | U210: - | Y210: :
U212: =+D100>=U207 -> TRUE | V212: =ABS((D100-U209)/IF(U212,W208,W209)) -> 1.5 | W212: =MIN(2.5,ABS((D100-(U207+W203*ABS(D100-U207)/ABS(IF(U212,W208+W203,W209-W203))*MIN(1,V212)))/(MIN(1.52,V212)/1.52*IF(U212,W204,W205)+(1.52-MIN(1.52,V212))/3.04*W206+(1.52-MIN(1.52,V212))/3.04*W207))) -> 1.409437374 | X212: =1/(1+(0.2316419*W212)) -> 0.7538722168 | Y212: =0.398942281*((2.71828)^((-(W212^2)/2))) -> 0.147755748 | Z212: =Y212*(0.31938153*X212-0.356563782*X212^2+1.781477937*X212^3-1.821255978*X212^4+1.330274429*X212^5) -> 0.07935304276 | AA212: =+E100>=U207 -> TRUE | AB212: =ABS((E100-U209)/IF(AA212,W208,W209)) -> 1 | AC212: =MIN(2.5,ABS((E100-(U207+W203*ABS(E100-U207)/ABS(IF(AA212,W208+W203,W209-W203))*MIN(1,AB212)))/(MIN(1.52,AB212)/1.52*IF(AA212,W204,W205)+(1.52-MIN(1.52,AB212))/3.04*W206+(1.52-MIN(1.52,AB212))/3.04*W207))) -> 1.000282944 | AD212: =1/(1+(0.2316419*AC212)) -> 0.811881106 | AE212: =0.398942281*((2.71828)^((-(AC212^2)/2))) -> 0.2419023421 | AF212: =AE212*(0.31938153*AD212-0.356563782*AD212^2+1.781477937*AD212^3-1.821255978*AD212^4+1.330274429*AD212^5) -> 0.1585868588 | AG212: =+F100>=U207 -> TRUE | AH212: =ABS((F100-U209)/IF(AG212,W208,W209)) -> 0.5 | AI212: =MIN(2.5,ABS((F100-(U207+W203*ABS(F100-U207)/ABS(IF(AG212,W208+W203,W209-W203))*MIN(1,AH212)))/(MIN(1.52,AH212)/1.52*IF(AG212,W204,W205)+(1.52-MIN(1.52,AH212))/3.04*W206+(1.52-MIN(1.52,AH212))/3.04*W207))) -> 0.570103627 | AJ212: =1/(1+(0.2316419*AI212)) -> 0.8833454936 | AK212: =0.398942281*((2.71828)^((-(AI212^2)/2))) -> 0.3391043184 | AL212: =AK212*(0.31938153*AJ212-0.356563782*AJ212^2+1.781477937*AJ212^3-1.821255978*AJ212^4+1.330274429*AJ212^5) -> 0.2843036978
W213: =MIN(2.5,ABS((D100-U209)/(MIN(1.52,V212)/1.52*IF(U212,W204,W205)+(1.52-MIN(1.52,V212))/3.04*W206+(1.52-MIN(1.52,V212))/3.04*W207))) -> 1.436899115 | X213: 0.7502742021 | Y213: 0.1420924509 | Z213: 0.07537342714 | AC213: =MIN(2.5,ABS((E100-U209)/(MIN(1.52,AB212)/1.52*IF(AA212,W204,W205)+(1.52-MIN(1.52,AB212))/3.04*W206+(1.52-MIN(1.52,AB212))/3.04*W207))) -> 1.000282944 | AD213: 0.811881106 | AE213: 0.2419023421 | AF213: 0.1585868588 | AI213: =MIN(2.5,ABS((F100-U209)/(MIN(1.52,AH212)/1.52*IF(AG212,W204,W205)+(1.52-MIN(1.52,AH212))/3.04*W206+(1.52-MIN(1.52,AH212))/3.04*W207))) -> 0.5232754777 | AJ213: =1/(1+(0.2316419*AI213)) -> 0.89189157 | AK213: =0.398942281*((2.71828)^((-(AI213^2)/2))) -> 0.347897615 | AL213: =AK213*(0.31938153*AJ213-0.356563782*AJ213^2+1.781477937*AJ213^3-1.821255978*AJ213^4+1.330274429*AJ213^5) -> 0.300391291
U214: =+G100>=U207 -> TRUE | V214: =ABS((G100-U209)/IF(U214,W208,W209)) -> 0 | W214: =MIN(2.5,ABS((G100-(U207+W203*ABS(G100-U207)/ABS(IF(U214,W208+W203,W209-W203))*MIN(1,V214)))/(MIN(1.52,V214)/1.52*IF(U214,W204,W205)+(1.52-MIN(1.52,V214))/3.04*W206+(1.52-MIN(1.52,V214))/3.04*W207))) -> 0.06674118542 | X214: 0.9847753194 | Y214: 0.3980547489 | Z214: 0.4733938036 | AA214: =+H100>=U207 -> FALSE | AB214: =ABS((H100-U209)/IF(AA214,W208,W209)) -> 0.5 | AC214: =MIN(2.5,ABS((H100-(U207+W203*ABS(H100-U207)/ABS(IF(AA214,W208+W203,W209-W203))*MIN(1,AB214)))/(MIN(1.52,AB214)/1.52*IF(AA214,W204,W205)+(1.52-MIN(1.52,AB214))/3.04*W206+(1.52-MIN(1.52,AB214))/3.04*W207))) -> 0.4179920169 | AD214: 0.9117229164 | AE214: 0.3655701329 | AF214: 0.3379765339 | AG214: =+I100>=U207 -> FALSE | AH214: =ABS((I100-U209)/IF(AG214,W208,W209)) -> 1 | AI214: =MIN(2.5,ABS((I100-(U207+W203*ABS(I100-U207)/ABS(IF(AG214,W208+W203,W209-W203))*MIN(1,AH214)))/(MIN(1.52,AH214)/1.52*IF(AG214,W204,W205)+(1.52-MIN(1.52,AH214))/3.04*W206+(1.52-MIN(1.52,AH214))/3.04*W207))) -> 0.9996261603 | AJ214: =1/(1+(0.2316419*AI214)) -> 0.8119814007 | AK214: =0.398942281*((2.71828)^((-(AI214^2)/2))) -> 0.2420612645 | AL214: =AK214*(0.31938153*AJ214-0.356563782*AJ214^2+1.781477937*AJ214^3-1.821255978*AJ214^4+1.330274429*AJ214^5) -> 0.1587457882
W215: =MIN(2.5,ABS((G100-U209)/(MIN(1.52,V214)/1.52*IF(U214,W204,W205)+(1.52-MIN(1.52,V214))/3.04*W206+(1.52-MIN(1.52,V214))/3.04*W207))) -> 0 | X215: 1 | Y215: 0.398942281 | Z215: 0.5000000002 | AC215: =MIN(2.5,ABS((H100-U209)/(MIN(1.52,AB214)/1.52*IF(AA214,W204,W205)+(1.52-MIN(1.52,AB214))/3.04*W206+(1.52-MIN(1.52,AB214))/3.04*W207))) -> 0.4722290276 | AD215: 0.9013978641 | AE215: 0.3568504174 | AF215: 0.3183816942 | AI215: =MIN(2.5,ABS((I100-U209)/(MIN(1.52,AH214)/1.52*IF(AG214,W204,W205)+(1.52-MIN(1.52,AH214))/3.04*W206+(1.52-MIN(1.52,AH214))/3.04*W207))) -> 0.9996261603 | AJ215: =1/(1+(0.2316419*AI215)) -> 0.8119814007 | AK215: =0.398942281*((2.71828)^((-(AI215^2)/2))) -> 0.2420612645 | AL215: =AK215*(0.31938153*AJ215-0.356563782*AJ215^2+1.781477937*AJ215^3-1.821255978*AJ215^4+1.330274429*AJ215^5) -> 0.1587457882
U216: =+J100>=U207 -> FALSE | V216: =ABS((J100-U209)/IF(U216,W208,W209)) -> 1.5 | W216: =MIN(2.5,ABS((J100-(U207+W203*ABS(J100-U207)/ABS(IF(U216,W208+W203,W209-W203))*MIN(1,V216)))/(MIN(1.52,V216)/1.52*IF(U216,W204,W205)+(1.52-MIN(1.52,V216))/3.04*W206+(1.52-MIN(1.52,V216))/3.04*W207))) -> 1.635229003 | X216: 0.7252748965 | Y216: 0.1047766247 | Z216: 0.05100055825 | AA216: =0>=U207 -> FALSE | AB216: =ABS((0-U209)/IF(AA216,W208,W209)) -> 0.8038892623 | AC216: =MIN(2.5,ABS((0-(U207+W203*ABS(0-U207)/ABS(IF(AA216,W208+W203,W209-W203))*MIN(1,AB216)))/(MIN(1.52,AB216)/1.52*IF(AA216,W204,W205)+(1.52-MIN(1.52,AB216))/3.04*W206+(1.52-MIN(1.52,AB216))/3.04*W207))) -> 0.7588865544 | AD216: 0.8504920651 | AE216: 0.2991252972 | AF216: 0.2239601831
W217: =MIN(2.5,ABS((J100-U209)/(MIN(1.52,V216)/1.52*IF(U216,W204,W205)+(1.52-MIN(1.52,V216))/3.04*W206+(1.52-MIN(1.52,V216))/3.04*W207))) -> 1.592458645 | X217: 0.7305241462 | Y217: 0.1122642348 | Z217: 0.05564089159 | AC217: =MIN(2.5,ABS((0-U209)/(MIN(1.52,AB216)/1.52*IF(AA216,W204,W205)+(1.52-MIN(1.52,AB216))/3.04*W206+(1.52-MIN(1.52,AB216))/3.04*W207))) -> 0.7855903774 | AD217: 0.8460411194 | AE217: 0.2930199907 | AF217: 0.2160537291
U221: EXPDATA:
U222: =U157 -> 100 | V222: =U170 -> 8.03 | W222: =W170 -> 133.34 | X222: =I82 -> 1032.567236 | Y222: =W208 -> 7393.1533 | Z222: =W209 -> 6030.511779 | AA222: =W204 -> 7730.891204 | AB222: =W206 -> 6001.191861 | AC222: =W205 -> 5666.282839 | AD222: =W207 -> 7473.896994

Sheet Winter Grazing
B1: Winter Annual Grazing Budget | R1: 3 | X1: 3 | Y1: 2 | Z1: 1
B3: Ext. Ag. Econ. Dept., Univ. of Ga. | Z3: (Total Cost Budget)
Z4: (Cash Flow Budget)
Z5: (Variable Cost Budget)
B7: INPUT DATA: Your values in the unprotected or highlighted cells | Z7: DIRECT FIXED COST
Z8: ANNUAL FIXED PAYMENT
Z9: DIRECT FIXED COST
Z11: RISK RATED RETURNS OVER TOTAL COST
B12: Temporary Winter Grazing | Z12: RISK RATED RETURNS OVER CASH FLOW COST
Z13: RISK RATED RETURNS OVER VARIABLE COST
F15: (Variable Cost Budget) | J15: Return to Main budget
B16: Number of Acres | F16: =+ACRES -> 50
B17: Number of 1,000 # Animal Units/acre | F17: 1
B18: Expected number of grazing days/acre | F18: 150
G22: UNITS | H22: TOTAL | I22: UNIT | J22: TOTAL | K22: $/Acre
B23: ITEM | F23: UNIT | G23: PER ACRE | H23: QUANTITY | I23: PRICE | J23: AMOUNT
B24: VARIABLE COSTS: | H24: (units) | I24: ($/unit)
B25: SEED
B26: Rye | F26: LBS. | G26: 60 | H26: =G26*ACRES -> 3000 | I26: 0.31 | J26: =H26*I26 -> 930 | K26: =+J26/ACRES -> 18.6
B27: Ryegrass | F27: LBS. | G27: 15 | H27: =G27*ACRES -> 750 | I27: 0.38 | J27: =H27*I27 -> 285 | K27: 5.7
B28: Arrowleaf Clover | F28: LBS. | G28: 0 | H28: =G28*ACRES -> 0 | I28: 2 | J28: =H28*I28 -> 0 | K28: 0
B29: Other | F29: LBS. | G29: 0 | H29: =G29*ACRES -> 0 | I29: 0.5 | J29: =H29*I29 -> 0 | K29: 0
B30: LIME | F30: TON | G30: 0 | H30: =G30*F16 -> 0 | I30: 42 | J30: =H30*I30 -> 0 | K30: 0
B31: FERTILIZER: | K31: 0
B32: NITROGEN | F32: LB. | G32: 125 | H32: =G32*F16 -> 6250 | I32: 0.44 | J32: =H32*I32 -> 2750 | K32: 55
B33: P205 | F33: LB. | G33: 0 | H33: =G33*F16 -> 0 | I33: 0.38 | J33: =H33*I33 -> 0 | K33: 0
B34: K20 | F34: LB. | G34: 0 | H34: =G34*F16 -> 0 | I34: 0.29 | J34: =H34*I34 -> 0 | K34: 0
B35: MACHINERY | K35: 0
B36: FUEL | F36: GAL. | G36: 0 | H36: =G36*F16 -> 0 | I36: 4.5 | J36: =H36*I36 -> 0 | K36: 0
B37: REPAIRS & MAINT. | F37: ACRE | G37: 0 | H37: =G37*F16 -> 0 | I37: =1.53+0.62 -> 2.15 | J37: =H37*I37 -> 0 | K37: 0
B38: LAND RENTAL | F38: ACRE | G38: 0 | H38: =G38*F16 -> 0 | I38: 0 | J38: =H38*I38 -> 0 | K38: 0
B39: LABOR | F39: HRS. | G39: 0 | H39: =G39*F16 -> 0 | I39: 9.02 | J39: =H39*I39 -> 0 | K39: 0
B40: Custom Planting | F40: Acre | G40: 0 | H40: =G40*F16 -> 0 | I40: 12 | J40: =H40*I40 -> 0 | K40: 0
B41: INTEREST ON OP. CAP. | F41: % | G41: 1 | H41: =SUM(J25:J40)*0.5 -> 1982.5 | I41: 0.07 | J41: =+(I41*H41)*days/365 -> 57.03082192 | K41: 1.140616438
B42: TOTAL VARIABLE COST | J42: =SUM(J25:J41) -> 4022.030822 | K42: 80.44061644
A44: Calculate Fixed Cost | B44: =IF($R$1=3,"FIXED COST:(No Fixed Cost for Variable Cost Budget","FIXED COST:(Click Appropriate Link for Calculation of Fixed Costs or Payments)") -> FIXED COST:(No Fixed Cost for Variable Cost Budget | H44: =IF($R$1<>3,ACRES,"") ->  | I44: =IF($R$1=1,TFC,IF($R$1=2,payment,"")) ->  | J44: =IF($R$1<>3,I44*H44,"") -> 
A45: Calculate Fixed Payment | B45: =IF($R$1=1,"OVERHEAD"," ") ->  | F45: =IF($R$1=1,"ACRE"," ") ->  | H45: =IF($R$1=1,ACRES,"") ->  | I45: =IF($R$1=1,3,"") ->  | J45: =IF($R$1=1,I45*H45,"") -> 
B46: =IF($R$1=1,"MANAGEMENT"," ") ->  | F46: =IF($R$1=1,"% EXPENSES"," ") ->  | H46: =IF($R$1=1,tVC,"") ->  | I46: =IF($R$1=1,0.05,"") ->  | J46: =IF($R$1=1,I46*H46,"") -> 
B47: =IF($R$1=1,"LAND"," ") ->  | F47: =IF($R$1=1,"ACRE"," ") ->  | H47: =IF($R$1=1,ACRES,"") ->  | I47: =IF($R$1=1,0," ") ->  | J47: =IF($R$1=1,I47*H47,"") -> 
B48: TOTAL FIXED COST | J48: =+SUM(J44:J47) -> 0
B50: TOTAL COST | J50: =+J48+tvc_grazing -> 4022.030822
B59: SENSITIVITY ANALYSIS-VARIABLE COSTS
C61: Cost Per Grazing Day at Various Combinations of Grazing Days & Costs Per Acre
D62: -0.25 | E62: -0.1 | F62: Expected | G62: +10% | H62: +25%
C63: Grazing Days | D63: =+F63*0.75 -> 3016.523116 | E63: =+F63*0.9 -> 3619.82774 | F63: =+tvc_grazing -> 4022.030822 | G63: =+F63*1.1 -> 4424.233904 | H63: =+F63*1.25 -> 5027.538527
C64: 30 | D64: =+D$63/$C64 -> 100.5507705 | E64: 120.6609247 | F64: 134.0676941 | G64: 147.4744635 | H64: 167.5846176
C65: 60 | D65: 50.27538527 | E65: 60.33046233 | F65: 67.03384703 | G65: 73.73723174 | H65: 83.79230879
C66: 90 | D66: 33.51692352 | E66: 40.22030822 | F66: 44.68923135 | G66: 49.15815449 | H66: 55.86153919
C67: 120 | D67: 25.13769264 | E67: 30.16523116 | F67: 33.51692352 | G67: 36.86861587 | H67: 41.89615439
C68: 150 | D68: 20.11015411 | E68: 24.13218493 | F68: 26.81353881 | G68: 29.49489269 | H68: 33.51692352
C69: 180 | D69: 16.75846176 | E69: 20.11015411 | F69: 22.34461568 | G69: 24.57907725 | H69: 27.9307696
C72: Grazing Days Required to Breakeven at Various Dollars Per Day Drylot Cost & Per Acre Cost
D73: -0.25 | E73: -0.1 | F73: Expected | G73: +10% | H73: +25%
C74: $/Day Drylot Costs | D74: =+D63 -> 3016.523116 | E74: =+E63 -> 3619.82774 | F74: =+F63 -> 4022.030822 | G74: =+G63 -> 4424.233904 | H74: =+H63 -> 5027.538527
C75: 0.25 | D75: =+D$74/$C75 -> 12066.09247 | E75: 14479.31096 | F75: 16088.12329 | G75: 17696.93562 | H75: 20110.15411
C76: =+C75+0.25 -> 0.5 | D76: 6033.046233 | E76: 7239.655479 | F76: 8044.061644 | G76: 8848.467808 | H76: 10055.07705
C77: =+C76+0.25 -> 0.75 | D77: 4022.030822 | E77: 4826.436986 | F77: 5362.707763 | G77: 5898.978539 | H77: 6703.384703
C78: =+C77+0.25 -> 1 | D78: 3016.523116 | E78: 3619.82774 | F78: 4022.030822 | G78: 4424.233904 | H78: 5027.538527
C79: =+C78+0.25 -> 1.25 | D79: 2413.218493 | E79: 2895.862192 | F79: 3217.624658 | G79: 3539.387123 | H79: 4022.030822
O97: * | P97: Must match budget Entries | T97: *
O98: * | P98: - | T98: *
O101: * | P101: =+F16 -> 50 | Q101: ACRE | T101: *
O102: * | P102: =+#REF! ->  | Q102: Best Y | R102: =+#REF! ->  | S102: Best P | T102: *
O103: * | P103: =+#REF! ->  | Q103: Opt. Y | R103: =+#REF! ->  | S103: Opt. P | T103: *
O104: * | P104: =+#REF! ->  | Q104: Med. Y | R104: =#REF! ->  | S104: Med. P | T104: *
O105: * | P105: =+#REF! ->  | Q105: Pess. Y | R105: =#REF! ->  | S105: Pess. P | T105: *
O107: * | P107: =+#REF! ->  | Q107: Worst Y | R107: =J20 -> 0 | S107: Worst P | T107: *
O108: * | P108: 0 | Q108: H&MC | T108: *
O109: * | P109: =+G68 -> 29.49489269 | Q109: T.C. | T109: *
O110: * | P110: * | T110: *
O111: : | P111: - | T111: :
O113: : | Q113: Calculations | T113: :
O115: : | P115: - | T115: :
O116: : | P116: =0.04*P102+0.25*P103+0.42*P104+0.25*P105+0.04*P107 ->  | Q116: Exp. Y | R116: =0.04*R102+0.25*R103+0.42*R104+0.25*R105+0.04*R107 ->  | S116: Exp. P | T116: :
O118: : | P118: =0.25*(P102-P116)+0.5*(P103-P116) ->  | Q118: SYO | R118: =0.25*(R102-R116)+0.5*(R103-R116) ->  | S118: SPO | T118: :
O119: : | P119: =0.25*(P116-P107)+0.5*(P116-P105) ->  | Q119: SYP | R119: =0.25*(R116-R107)+0.5*(R116-R105) ->  | S119: SPP | T119: :
O120: : | P120: =P118^2 ->  | Q120: VYO | R120: =R118^2 ->  | S120: VPO | T120: :
O121: : | P121: =P119^2 ->  | Q121: VYP | R121: =R119^2 ->  | S121: VPP | T121: :
O122: : | P122: - | T122: :
O123: : | P123: =(P116^2*R120)+(R116-P108)^2*P120 ->  | Q123: VTRHH | R123: =(P116^2*R121)+(R116-P108)^2*P121 ->  | S123: VTRLL | T123: :
O124: : | P124: =(P116^2*R120)+(R116-P108)^2*P121 ->  | Q124: VTRHL | R124: =P116^2*R121+(R116-P108)^2*P120 ->  | S124: VTRLH | T124: :
O125: : | P125: =SQRT(P123) ->  | Q125: STRHH | R125: =SQRT(R123) ->  | S125: STRLL | T125: :
O127: : | P127: =SQRT(P124) ->  | Q127: STRHL | R127: =SQRT(R124) ->  | S127: STRLH | T127: :
O128: : | P128: =0.66*P125+0.17*P127+0.17*R127 ->  | Q128: STRO | R128: =0.66*R125+0.17*P127+0.17*R127 ->  | S128: STRP | T128: :
O129: : | P129: - | T129: :
O130: : | P130: Calculation of NR and for Z values | T130: :
O140: : | P140: - | T140: :
O141: : | P141: =R104 ->  | Q141: MP | R141: =+P147-P145 ->  | S141: ENR_MNR | T141: :
O142: : | P142: =P104 ->  | Q142: MY | R142: =P101*P125 ->  | S142: STRHH | T142: :
O143: : | P143: =+P146+0.33*(R147-R146) ->  | Q143: MTR | R143: =P101*R125 ->  | S143: STRLL | T143: :
O144: : | P144: =+G68 -> 29.49489269 | Q144: MTC | R144: =P101*P127 ->  | S144: STRHL | T144: :
O145: : | P145: =P143-P144 ->  | Q145: MNR | R145: =P101*R127 ->  | S145: STRLH | T145: :
O146: : | P146: =P101*P116*R116 ->  | Q146: ETR | R146: =P101*P128 ->  | S146: STRO | T146: :
O147: : | P147: =P146-P144 ->  | Q147: ENR | R147: =P101*R128 ->  | S147: STRP | T147: : | AV147: 1
O148: : | P148: - | T148: :
P150: =+D88>=P145 ->  | Q150: =ABS((D88-P147)/IF(P150,R146,R147)) ->  | R150: =MIN(2.5,ABS((D88-(P145+R141*ABS(D88-P145)/ABS(IF(P150,R146+R141,R147-R141))*MIN(1,Q150)))/(MIN(1.52,Q150)/1.52*IF(P150,R142,R143)+(1.52-MIN(1.52,Q150))/3.04*R144+(1.52-MIN(1.52,Q150))/3.04*R145))) ->  | S150: =1/(1+(0.2316419*R150)) ->  | T150: =0.398942281*((2.71828)^((-(R150^2)/2))) ->  | U150: =T150*(0.31938153*S150-0.356563782*S150^2+1.781477937*S150^3-1.821255978*S150^4+1.330274429*S150^5) ->  | V150: =+E88>=P145 ->  | W150: =ABS((E88-P147)/IF(V150,R146,R147)) ->  | X150: =MIN(2.5,ABS((E88-(P145+R141*ABS(E88-P145)/ABS(IF(V150,R146+R141,R147-R141))*MIN(1,W150)))/(MIN(1.52,W150)/1.52*IF(V150,R142,R143)+(1.52-MIN(1.52,W150))/3.04*R144+(1.52-MIN(1.52,W150))/3.04*R145))) ->  | Y150: =1/(1+(0.2316419*X150)) ->  | Z150: =0.398942281*((2.71828)^((-(X150^2)/2))) ->  | AA150: =Z150*(0.31938153*Y150-0.356563782*Y150^2+1.781477937*Y150^3-1.821255978*Y150^4+1.330274429*Y150^5) ->  | AB150: =+F88>=P145 ->  | AC150: =ABS((F88-P147)/IF(AB150,R146,R147)) ->  | AD150: =MIN(2.5,ABS((F88-(P145+R141*ABS(F88-P145)/ABS(IF(AB150,R146+R141,R147-R141))*MIN(1,AC150)))/(MIN(1.52,AC150)/1.52*IF(AB150,R142,R143)+(1.52-MIN(1.52,AC150))/3.04*R144+(1.52-MIN(1.52,AC150))/3.04*R145))) ->  | AE150: =1/(1+(0.2316419*AD150)) ->  | AF150: =0.398942281*((2.71828)^((-(AD150^2)/2))) ->  | AG150: =AF150*(0.31938153*AE150-0.356563782*AE150^2+1.781477937*AE150^3-1.821255978*AE150^4+1.330274429*AE150^5) -> 
R151: =MIN(2.5,ABS((D88-P147)/(MIN(1.52,Q150)/1.52*IF(P150,R142,R143)+(1.52-MIN(1.52,Q150))/3.04*R144+(1.52-MIN(1.52,Q150))/3.04*R145))) ->  | X151: =MIN(2.5,ABS((E88-P147)/(MIN(1.52,W150)/1.52*IF(V150,R142,R143)+(1.52-MIN(1.52,W150))/3.04*R144+(1.52-MIN(1.52,W150))/3.04*R145))) ->  | AD151: =MIN(2.5,ABS((F88-P147)/(MIN(1.52,AC150)/1.52*IF(AB150,R142,R143)+(1.52-MIN(1.52,AC150))/3.04*R144+(1.52-MIN(1.52,AC150))/3.04*R145))) ->  | AE151: =1/(1+(0.2316419*AD151)) ->  | AF151: =0.398942281*((2.71828)^((-(AD151^2)/2))) ->  | AG151: =AF151*(0.31938153*AE151-0.356563782*AE151^2+1.781477937*AE151^3-1.821255978*AE151^4+1.330274429*AE151^5) -> 
P152: =+G88>=P145 ->  | Q152: =ABS((G88-P147)/IF(P152,R146,R147)) ->  | R152: =MIN(2.5,ABS((G88-(P145+R141*ABS(G88-P145)/ABS(IF(P152,R146+R141,R147-R141))*MIN(1,Q152)))/(MIN(1.52,Q152)/1.52*IF(P152,R142,R143)+(1.52-MIN(1.52,Q152))/3.04*R144+(1.52-MIN(1.52,Q152))/3.04*R145))) ->  | V152: =+H88>=P145 ->  | W152: =ABS((H88-P147)/IF(V152,R146,R147)) ->  | X152: =MIN(2.5,ABS((H88-(P145+R141*ABS(H88-P145)/ABS(IF(V152,R146+R141,R147-R141))*MIN(1,W152)))/(MIN(1.52,W152)/1.52*IF(V152,R142,R143)+(1.52-MIN(1.52,W152))/3.04*R144+(1.52-MIN(1.52,W152))/3.04*R145))) ->  | AB152: =+I88>=P145 ->  | AC152: =ABS((I88-P147)/IF(AB152,R146,R147)) ->  | AD152: =MIN(2.5,ABS((I88-(P145+R141*ABS(I88-P145)/ABS(IF(AB152,R146+R141,R147-R141))*MIN(1,AC152)))/(MIN(1.52,AC152)/1.52*IF(AB152,R142,R143)+(1.52-MIN(1.52,AC152))/3.04*R144+(1.52-MIN(1.52,AC152))/3.04*R145))) ->  | AE152: =1/(1+(0.2316419*AD152)) ->  | AF152: =0.398942281*((2.71828)^((-(AD152^2)/2))) ->  | AG152: =AF152*(0.31938153*AE152-0.356563782*AE152^2+1.781477937*AE152^3-1.821255978*AE152^4+1.330274429*AE152^5) -> 
R153: =MIN(2.5,ABS((G88-P147)/(MIN(1.52,Q152)/1.52*IF(P152,R142,R143)+(1.52-MIN(1.52,Q152))/3.04*R144+(1.52-MIN(1.52,Q152))/3.04*R145))) ->  | X153: =MIN(2.5,ABS((H88-P147)/(MIN(1.52,W152)/1.52*IF(V152,R142,R143)+(1.52-MIN(1.52,W152))/3.04*R144+(1.52-MIN(1.52,W152))/3.04*R145))) ->  | AD153: =MIN(2.5,ABS((I88-P147)/(MIN(1.52,AC152)/1.52*IF(AB152,R142,R143)+(1.52-MIN(1.52,AC152))/3.04*R144+(1.52-MIN(1.52,AC152))/3.04*R145))) ->  | AE153: =1/(1+(0.2316419*AD153)) ->  | AF153: =0.398942281*((2.71828)^((-(AD153^2)/2))) ->  | AG153: =AF153*(0.31938153*AE153-0.356563782*AE153^2+1.781477937*AE153^3-1.821255978*AE153^4+1.330274429*AE153^5) -> 
P154: =+J88>=P145 ->  | Q154: =ABS((J88-P147)/IF(P154,R146,R147)) ->  | R154: =MIN(2.5,ABS((J88-(P145+R141*ABS(J88-P145)/ABS(IF(P154,R146+R141,R147-R141))*MIN(1,Q154)))/(MIN(1.52,Q154)/1.52*IF(P154,R142,R143)+(1.52-MIN(1.52,Q154))/3.04*R144+(1.52-MIN(1.52,Q154))/3.04*R145))) ->  | V154: =0>=P145 ->  | W154: =ABS((0-P147)/IF(V154,R146,R147)) ->  | X154: =MIN(2.5,ABS((0-(P145+R141*ABS(0-P145)/ABS(IF(V154,R146+R141,R147-R141))*MIN(1,W154)))/(MIN(1.52,W154)/1.52*IF(V154,R142,R143)+(1.52-MIN(1.52,W154))/3.04*R144+(1.52-MIN(1.52,W154))/3.04*R145))) -> 
R155: =MIN(2.5,ABS((J88-P147)/(MIN(1.52,Q154)/1.52*IF(P154,R142,R143)+(1.52-MIN(1.52,Q154))/3.04*R144+(1.52-MIN(1.52,Q154))/3.04*R145))) ->  | X155: =MIN(2.5,ABS((0-P147)/(MIN(1.52,W154)/1.52*IF(V154,R142,R143)+(1.52-MIN(1.52,W154))/3.04*R144+(1.52-MIN(1.52,W154))/3.04*R145))) -> 
P160: EXPDATA
P161: =P101 -> 50 | Q161: =P116 ->  | R161: =R116 ->  | S161: =I68 -> 0 | T161: =R146 ->  | U161: =R147 ->  | V161: =R142 ->  | W161: =R144 ->  | X161: =R143 ->  | Y161: =R145 -> 
B192: ALTB for calculation and return to breakeven table;
B193: ALTR for calculation and return to risk rated return table;
B194: ALTI for return to Instructions;
B195: HOME for return to beginning of budget.
B245: ALTB for calculation and return to breakeven table;
B246: ALTR for calculation and return to risk rated return table;
B248: HOME for return to beginning of budget.

Sheet Rations
B2: Ration 1
B4: Ingredient | C4: $ per Ton | D4: % of Ration | E4: #/Ton DM | F4: Cost per Dry Ton | H4: Total Cost | L4: =SUM(F5:F14) -> 152.9625
B5: Corn | C5: =VLOOKUP(B5,'Ration Components'!$B$4:$D$37,3,FALSE) -> 160 | D5: 0.65 | E5: =(VLOOKUP(B5,'Ration Components'!$B$4:$D$37,2,FALSE))*2000 -> 1800 | F5: =C5*D5*E5/2000 -> 93.6 | H5: Number of Days on Ration | L5: 150
B6: Whole Cottonseed | C6: =VLOOKUP(B6,'Ration Components'!$B$4:$D$37,3,FALSE) -> 235 | D6: 0.1 | E6: =(VLOOKUP(B6,'Ration Components'!$B$4:$D$37,2,FALSE))*2000 -> 1800 | F6: =C6*D6*E6/2000 -> 21.15 | H6: Total Cost per Pound | L6: =L4/2000 -> 0.07648125
B7: Gin Trash | C7: =VLOOKUP(B7,'Ration Components'!$B$4:$D$37,3,FALSE) -> 35 | D7: 0.15 | E7: =(VLOOKUP(B7,'Ration Components'!$B$4:$D$37,2,FALSE))*2000 -> 1700 | F7: 4.4625 | H7: Starting Weight | L7: 525
B8: Soybean Meal | C8: =VLOOKUP(B8,'Ration Components'!$B$4:$D$37,3,FALSE) -> 375 | D8: 0.1 | E8: =(VLOOKUP(B8,'Ration Components'!$B$4:$D$37,2,FALSE))*2000 -> 1800 | F8: 33.75 | H8: Final Weight | L8: 825
B9: BLANK | C9: =VLOOKUP(B9,'Ration Components'!$B$4:$D$37,3,FALSE) -> 0 | D9: 0 | E9: =(VLOOKUP(B9,'Ration Components'!$B$4:$D$37,2,FALSE))*2000 -> 1980 | F9: 0 | H9: Average Daily Gain | L9: =IF(L5=0,0,(L8-L7)/L5) -> 2
B10: BLANK | C10: =VLOOKUP(B10,'Ration Components'!$B$4:$D$37,3,FALSE) -> 0 | D10: 0 | E10: =(VLOOKUP(B10,'Ration Components'!$B$4:$D$37,2,FALSE))*2000 -> 1980 | F10: 0 | H10: Consumption as % of Bodyweight | L10: 0.015
B11: BLANK | C11: =VLOOKUP(B11,'Ration Components'!$B$4:$D$37,3,FALSE) -> 0 | D11: 0 | E11: =(VLOOKUP(B11,'Ration Components'!$B$4:$D$37,2,FALSE))*2000 -> 1980 | F11: 0 | H11: Pounds Fed per Day | L11: =L10*L7 -> 7.875
B12: BLANK | C12: =VLOOKUP(B12,'Ration Components'!$B$4:$D$37,3,FALSE) -> 0 | D12: 0 | E12: =(VLOOKUP(B12,'Ration Components'!$B$4:$D$37,2,FALSE))*2000 -> 1980 | F12: 0 | H12: Cost per Day | L12: =L11*L6 -> 0.6022898438
B13: BLANK | C13: =VLOOKUP(B13,'Ration Components'!$B$4:$D$37,3,FALSE) -> 0 | D13: 0 | E13: =(VLOOKUP(B13,'Ration Components'!$B$4:$D$37,2,FALSE))*2000 -> 1980 | F13: 0 | H13: Total Cost Fed per Head | L13: =L12*L5 -> 90.34347656
B14: BLANK | C14: =VLOOKUP(B14,'Ration Components'!$B$4:$D$37,3,FALSE) -> 0 | D14: 0 | E14: =(VLOOKUP(B14,'Ration Components'!$B$4:$D$37,2,FALSE))*2000 -> 1980 | F14: 0 | H14: Total Pounds Fed per Head | L14: =L11*L5 -> 1181.25
H15: Cost per Cwt Produced | L15: =IF(L8=0,0,L13/((L8-L7)/100)) -> 30.11449219
B16: Ration 2
B18: Ingredient | C18: $ per Ton | D18: % of Ration | E18: #/Ton DM | F18: Cost per Dry Ton | H18: Total Cost | L18: =SUM(F19:F28) -> 0
B19: BLANK | C19: =VLOOKUP(B19,'Ration Components'!$B$4:$D$37,3,FALSE) -> 0 | D19: 0 | E19: =(VLOOKUP(B19,'Ration Components'!$B$4:$D$37,2,FALSE))*2000 -> 1980 | F19: =C19*D19*E19/2000 -> 0 | H19: Number of Days on Ration | L19: 0
B20: BLANK | C20: =VLOOKUP(B20,'Ration Components'!$B$4:$D$37,3,FALSE) -> 0 | D20: 0 | E20: =(VLOOKUP(B20,'Ration Components'!$B$4:$D$37,2,FALSE))*2000 -> 1980 | F20: =C20*D20*E20/2000 -> 0 | H20: Total Cost per Pound | L20: =L18/2000 -> 0
B21: BLANK | C21: =VLOOKUP(B21,'Ration Components'!$B$4:$D$37,3,FALSE) -> 0 | D21: 0 | E21: =(VLOOKUP(B21,'Ration Components'!$B$4:$D$37,2,FALSE))*2000 -> 1980 | F21: 0 | H21: Starting Weight | L21: 0
B22: BLANK | C22: =VLOOKUP(B22,'Ration Components'!$B$4:$D$37,3,FALSE) -> 0 | D22: 0 | E22: =(VLOOKUP(B22,'Ration Components'!$B$4:$D$37,2,FALSE))*2000 -> 1980 | F22: 0 | H22: Final Weight | L22: 0
B23: BLANK | C23: =VLOOKUP(B23,'Ration Components'!$B$4:$D$37,3,FALSE) -> 0 | D23: 0 | E23: =(VLOOKUP(B23,'Ration Components'!$B$4:$D$37,2,FALSE))*2000 -> 1980 | F23: 0 | H23: Average Daily Gain | L23: =IF(L19=0,0,(L22-L21)/L19) -> 0
B24: BLANK | C24: =VLOOKUP(B24,'Ration Components'!$B$4:$D$37,3,FALSE) -> 0 | D24: 0 | E24: =(VLOOKUP(B24,'Ration Components'!$B$4:$D$37,2,FALSE))*2000 -> 1980 | F24: 0 | H24: Consumption as % of Bodyweight | L24: 0.015
B25: BLANK | C25: =VLOOKUP(B25,'Ration Components'!$B$4:$D$37,3,FALSE) -> 0 | D25: 0 | E25: =(VLOOKUP(B25,'Ration Components'!$B$4:$D$37,2,FALSE))*2000 -> 1980 | F25: 0 | H25: Pounds Fed per Day | L25: =L24*L21 -> 0
B26: BLANK | C26: =VLOOKUP(B26,'Ration Components'!$B$4:$D$37,3,FALSE) -> 0 | D26: 0 | E26: =(VLOOKUP(B26,'Ration Components'!$B$4:$D$37,2,FALSE))*2000 -> 1980 | F26: 0 | H26: Cost per Day | L26: =L25*L20 -> 0
B27: BLANK | C27: =VLOOKUP(B27,'Ration Components'!$B$4:$D$37,3,FALSE) -> 0 | D27: 0 | E27: =(VLOOKUP(B27,'Ration Components'!$B$4:$D$37,2,FALSE))*2000 -> 1980 | F27: 0 | H27: Total Cost Fed per Head | L27: =L26*L19 -> 0
B28: BLANK | C28: =VLOOKUP(B28,'Ration Components'!$B$4:$D$37,3,FALSE) -> 0 | D28: 0 | E28: =(VLOOKUP(B28,'Ration Components'!$B$4:$D$37,2,FALSE))*2000 -> 1980 | F28: 0 | H28: Total Pounds Fed per Head | L28: =L25*L19 -> 0
H29: Cost per Cwt Produced | L29: =IF(L22=0,0,L27/((L22-L21)/100)) -> 0
B30: Ration 3
B32: Ingredient | C32: $ per Ton | D32: % of Ration | E32: #/Ton DM | F32: Cost per Dry Ton | H32: Total Cost | L32: =SUM(F33:F42) -> 0
B33: BLANK | C33: =VLOOKUP(B33,'Ration Components'!$B$4:$D$37,3,FALSE) -> 0 | D33: 0.65 | E33: =(VLOOKUP(B33,'Ration Components'!$B$4:$D$37,2,FALSE))*2000 -> 1980 | F33: =C33*D33*E33/2000 -> 0 | H33: Number of Days on Ration | L33: 0
B34: BLANK | C34: =VLOOKUP(B34,'Ration Components'!$B$4:$D$37,3,FALSE) -> 0 | D34: 0.2 | E34: =(VLOOKUP(B34,'Ration Components'!$B$4:$D$37,2,FALSE))*2000 -> 1980 | F34: =C34*D34*E34/2000 -> 0 | H34: Total Cost per Pound | L34: =L32/2000 -> 0
B35: BLANK | C35: =VLOOKUP(B35,'Ration Components'!$B$4:$D$37,3,FALSE) -> 0 | D35: 0.15 | E35: =(VLOOKUP(B35,'Ration Components'!$B$4:$D$37,2,FALSE))*2000 -> 1980 | F35: 0 | H35: Starting Weight | L35: 0
B36: BLANK | C36: =VLOOKUP(B36,'Ration Components'!$B$4:$D$37,3,FALSE) -> 0 | D36: 0 | E36: =(VLOOKUP(B36,'Ration Components'!$B$4:$D$37,2,FALSE))*2000 -> 1980 | F36: 0 | H36: Final Weight | L36: 0
B37: BLANK | C37: =VLOOKUP(B37,'Ration Components'!$B$4:$D$37,3,FALSE) -> 0 | D37: 0 | E37: =(VLOOKUP(B37,'Ration Components'!$B$4:$D$37,2,FALSE))*2000 -> 1980 | F37: 0 | H37: Average Daily Gain | L37: =IF(L33=0,0,(L36-L35)/L33) -> 0
B38: BLANK | C38: =VLOOKUP(B38,'Ration Components'!$B$4:$D$37,3,FALSE) -> 0 | D38: 0 | E38: =(VLOOKUP(B38,'Ration Components'!$B$4:$D$37,2,FALSE))*2000 -> 1980 | F38: 0 | H38: Consumption as % of Bodyweight | L38: 0
B39: BLANK | C39: =VLOOKUP(B39,'Ration Components'!$B$4:$D$37,3,FALSE) -> 0 | D39: 0 | E39: =(VLOOKUP(B39,'Ration Components'!$B$4:$D$37,2,FALSE))*2000 -> 1980 | F39: 0 | H39: Pounds Fed per Day | L39: =L38*L35 -> 0
B40: BLANK | C40: =VLOOKUP(B40,'Ration Components'!$B$4:$D$37,3,FALSE) -> 0 | D40: 0 | E40: =(VLOOKUP(B40,'Ration Components'!$B$4:$D$37,2,FALSE))*2000 -> 1980 | F40: 0 | H40: Cost per Day | L40: =L39*L34 -> 0
B41: BLANK | C41: =VLOOKUP(B41,'Ration Components'!$B$4:$D$37,3,FALSE) -> 0 | D41: 0 | E41: =(VLOOKUP(B41,'Ration Components'!$B$4:$D$37,2,FALSE))*2000 -> 1980 | F41: 0 | H41: Total Cost Fed per Head | L41: =L40*L33 -> 0
B42: BLANK | C42: =VLOOKUP(B42,'Ration Components'!$B$4:$D$37,3,FALSE) -> 0 | D42: 0 | E42: =(VLOOKUP(B42,'Ration Components'!$B$4:$D$37,2,FALSE))*2000 -> 1980 | F42: 0 | H42: Total Pounds Fed per Head | L42: =L39*L33 -> 0
H43: Cost per Cwt Produced | L43: =IF(L36=0,0,L41/((L36-L35)/100)) -> 0

Sheet Ration Components
B3: Feed | C3: Percent DM | D3: $ per Ton
B4: Hay | C4: 0.85 | D4: 130
B5: Corn Silage | C5: 0.32 | D5: 68
B6: Cottonseed Hulls | C6: 0.9 | D6: 123
B7: Gin Trash | C7: 0.85 | D7: 35
B8: Peanut Hulls | C8: 0.9 | D8: 55
B9: Soybean Stubble | C9: 0.85 | D9: 20
B10: Chicken Litter | C10: 0.85 | D10: 35
B11: Corn Gluten Feed | C11: 0.9 | D11: 157
B12: Cottonseed Meal | C12: 0.9 | D12: 320
B13: Dried Distiller's Grains | C13: 0.9 | D13: 177
B14: Liquid Feed | C14: 0.67 | D14: 285
B15: Molasses Block | C15: 0.76 | D15: 650
B16: Range Cubes | C16: 0.85 | D16: 330
B17: Soybean Meal | C17: 0.9 | D17: 375
B18: Sunflower Meal | C18: 0.9 | D18: 350
B19: Urea | C19: 0.99 | D19: 150
B20: Whole Cottonseed | C20: 0.9 | D20: 235
B21: Whole Soybeans | C21: 0.9 | D21: 125
B22: Barley | C22: 0.9 | D22: 200
B23: Citrus Pulp | C23: 0.9 | D23: 220
B24: Corn | C24: 0.9 | D24: 160
B25: Grain Sorghum | C25: 0.9 | D25: 140
B26: Basic Mineral | C26: 0.99 | D26: 220
B27: Low P Mineral | C27: 0.99 | D27: 200
B28: Limestone | C28: 0.99 | D28: 125
B29: BLANK | C29: 0.99 | D29: 0
B30: BLANK | C30: 0.99 | D30: 0
B31: BLANK | C31: 0.99 | D31: 0
B32: BLANK | C32: 0.99 | D32: 0
B33: BLANK | C33: 0.99 | D33: 0
B34: BLANK | C34: 0.99 | D34: 0
B35: BLANK | C35: 0.99 | D35: 0
B36: BLANK | C36: 0.99 | D36: 0
B37: BLANK | C37: 0.99 | D37: 0

Sheet Procurement
I2: Return to Main Budget
B3: Procurement Cost Detail
B5: ITEM | E5: UNIT | F5: QUANTITY | G5: PRICE | H5: AMOUNT
H6: ($/hd.)
B7: Order Buying | E7: CWT. | F7: 2 | G7: 0.5 | H7: =F7*G7 -> 1
B8: Hauling | E8: MILES | F8: 100 | G8: 3.5 | H8: =+G8*F8/34 -> 10.29411765
B10: TOTAL PROCUREMENT COST | H10: =SUM(H7:H8) -> 11.29411765
B13: Auction & Hauling Cost Detail | I13: Return to Main Budget
B15: ITEM | E15: UNIT | F15: QUANTITY | G15: PRICE | H15: AMOUNT
B16: Commission | E16: % | F16: =+Main!H29*Main!H30 -> 1072 | G16: 0.02 | H16: =+G16*F16 -> 21.44
B17: Yardage | E17: Day | F17: 1 | G17: 0 | H17: =+G17*F17 -> 0
B18: Hauling | E18: Miles | F18: 100 | G18: 0 | H18: =+G18*F18/24 -> 0
B20: Total Auction & Hauling Cost | H20: =+SUM(H16:H18) -> 21.44

Sheet Fixed_Cost
B3: INVESTMENT AND ANNUAL FIXED COST
B4: (Check All Higlighted Entries this Page)
D6: NO. OF CALVES STOCKERED: | G6: 130
D7: NO. OF ACRES: | G7: 100 | J7: Return to Budget
D8: INTEREST RATE: | G8: 0.04
D10: % OF TIME FOR | G10: SALVAGE | H10: YRS. OF | I10: CALC.
B11: ITEM | D11: THIS ENTERPRISE | F11: COST | G11: VALUE | H11: LIFE | I11: DEPR. | J11: TOTAL
B12: CATTLE EQUIP: | E12: (%) | H12: (Yr.) | I12: ($/yr.)
B13: FENCING | E13: 1 | F13: =1.8*1800 -> 3240 | G13: 0 | H13: 15 | I13: =IF(F13>0,E13*(F13-G13)/H13,0) -> 216
B14: CORRAL & LOADING CHUTE | E14: 1 | F14: 2200 | G14: 0 | H14: 10 | I14: 220
B15: FEED BUNKS | E15: 1 | F15: 2070 | G15: 0 | H15: 10 | I15: 207
B16: MISC. EQUIPMENT | E16: 1 | F16: 500 | G16: 0 | H16: 10 | I16: 50
B17: OTHER | E17: 0 | F17: 0 | G17: 0 | H17: 0 | I17: 0
B18: OTHER | E18: 0 | F18: 0 | G18: 0 | H18: 0 | I18: 0
B19: OTHER | E19: 0 | F19: 0 | G19: 0 | H19: 0 | I19: 0
B20: MACHINERY & EQUIPMENT:
B21: TRACTOR | E21: 0.08 | F21: 25000 | G21: 10000 | H21: 10 | I21: =IF(F21>0,E21*(F21-G21)/H21,0) -> 120
B22: GRAIN DRILL | E22: 1 | F22: 5000 | G22: 1000 | H22: 10 | I22: 400
B23: DISK | E23: 0.25 | F23: 6500 | G23: =0.2*F23 -> 1300 | H23: 10 | I23: 130
B24: PLOW | E24: 0.25 | F24: 7000 | G24: =0.2*F24 -> 1400 | H24: 10 | I24: 140
B25: OTHER SEEDING EQUIP. | E25: 0 | F25: 0 | G25: 0 | H25: 0 | I25: 0
B26: OTHER | E26: 0 | F26: 0 | G26: 0 | H26: 0 | I26: 0
B27: LAND | E27: 0 | F27: 50000 | G27: 50000 | H27: 30 | I27: 0
B30: TOTAL CATTLE INVESTMENT | F30: =+F13*E13+F14*E14+F15*E15+F16*E16+F17*E17+F18*E18+F19*E19 -> 8010 | G30: =+G13*E13+G14*E14+G15*E15+G16*E16+E17*G17+E18*G18+E19*G19 -> 0
B31: TOTAL MACH. & EQUIP. INVEST. | F31: =+F21*E21+F22*E22+F23*E23+F24*E24+F25*E25+F26*E26+F27*E27 -> 10375 | G31: =+G21*E21+G22*E22+G23*E23+G24*E24+G25*E25+G26*E26+G27*E27 -> 2475
B33: TOTAL CATTLE EQUIP. DEPRECIATION | J33: =SUM(I13:I19) -> 693
B34: TOTAL MACH. & EQUIP. DEPRECIATION | J34: =SUM(I21:I27) -> 790
B36: INTEREST ON CATTLE INVEST. (AVE. INV. TIMES INT. RATE) | J36: =AVERAGE(F30:G30)*G8 -> 160.2
B37: INTEREST ON MACH. & EQUIP. INVEST. (AVE. INV. TIMES INT. RATE) | J37: =AVERAGE(F31:G31)*G8 -> 257
B39: CATTLE EQUIP. TAX & INS., | F39: AVE. INV. TIMES | H39: 0.014 | J39: =AVERAGE(F30:G30)*H39 -> 56.07
B40: MACH & EQUIP. TAX & INS., | F40: AVE. INV. TIMES | H40: 0.014 | J40: =AVERAGE(F31:G31)*H40 -> 89.95
B42: TOTAL ANNUAL FIXED COST | J42: =SUM(J33:J40) -> 2046.22
I44: Per Head Marketed | J44: Total
B45: ANNUAL CATTLE EQUIP. FIXED COST | I45: =+cattle_fixed/sold -> 9.184545455 | J45: =SUM(J33,J36,J39) -> 909.27
B46: TOTAL ANNUAL MACHINERY & EQUIPMENT FIXED COST PER ACRE | I46: =+mach_fixed/ACRES -> 22.739 | J46: =SUM(J34,J37,J40) -> 1136.95

Sheet Fixed_Payment
B2: Return to Budget
B3: ANNUAL ENTERPRISE FIXED OUTLAYS
B4: Check All Highlighted Entries this Page)
E6: NO. OF ACRES: | G6: 100
E7: NO. OF HEAD: | G7: =+sold -> 99
B10: DEBT PAYMENT CALCULATION ON NEW INVESTMENT:
B11: (For Use In Calculating Debt Payments on New Investment)
E12: UNIT | F12: TOTAL | G12: -------FINANCING-------
B13: ITEM | D13: NUMBER | E13: COST | F13: COST | G13: AMOUNT | H13: YEARS | I13: INT.RATE | J13: PAYMENT
B14: FACILITIES:
B15: FENCE (MILES) | D15: 1.8 | E15: 1800 | F15: =D15*E15 -> 3240 | G15: 0.5 | H15: 7 | I15: 0.04 | J15: =PMT(I15,H15,-F15*G15) -> 269.9075715
B16: CORRAL &
B17: LOADING CHUTE | F17: 2200 | G17: 0.5 | H17: 7 | I17: 0.04 | J17: =PMT(I17,H17,-F17*G17) -> 183.2705732
B18: FEED BUNK | F18: =9*G7 -> 891 | G18: 0.5 | H18: 7 | I18: 0.04 | J18: =PMT(I18,H18,-F18*G18) -> 74.22458216
B19: GRINDERMIXER | F19: 7000 | G19: 0.5 | H19: 7 | I19: 0.04 | J19: =PMT(I19,H19,-F19*G19) -> 583.1336421
B20: GRAIN BIN (2000 BU.) | F20: 2300 | G20: 0.5 | H20: 7 | I20: 0.04 | J20: =PMT(I20,H20,-F20*G20) -> 191.6010538
B21: MISC. EQUIP. | F21: 400 | G21: 0.5 | H21: 7 | I21: 0.04 | J21: =PMT(I21,H21,-F21*G21) -> 33.32192241
B23: LAND | D23: =Main!F19 -> 50 | E23: 500 | F23: =D23*E23 -> 25000 | G23: 0 | H23: 30 | I23: 0.03 | J23: =PMT(I23,H23,-F23*G23) -> 0
B25: CALCULATED TOTAL ANNUAL DEBT PAYMENT | J25: =SUM(J15:J23) -> 1335.459345
B28: CURRENT ANNUAL DEBT PAYMENTS:
B29: (For Use In Totaling Debt Payments on Existing Investment)
B31: LOAN # 1 | J31: 0
B32: LOAN # 2 | J32: 0
B33: LOAN # 3 | J33: 0
B34: LOAN # 4 | J34: 0
B35: LOAN # 5 | J35: 0
E37: TOTAL ANNUAL DEBT PAYMENT | J37: =SUM(J25:J36) -> 1335.459345
E39: TAXES AND INSURANCE | J39: =+Fixed_Cost!J29 -> 0
E41: TOTAL ANNUAL FIXED OUTLAY | J41: =SUM(J37:J39) -> 1335.459345
E42: TOTAL ANNUAL FIXED OUTLAY PER HEAD | J42: =+J41/G7 -> 13.48948834

Sheet J

Sheet K

Sheet L
N1: -23595.59459 | O1: 0.02275009265
N2: -18314.6126 | O2: 0.06680727938
A3: 1 | N3: -13033.63061 | O3: 0.1586553132
N4: -10393.13961 | O4: 0.2266273226
N5: -7752.648615 | O5: 0.3085375586
N6: -5112.157619 | O6: 0.4012937347
N7: -2471.666622 | O7: 0.4999999998
N8: -2471.666622 | O8: 0.4999999998
N9: 168.8243744 | O9: 0.5987062653
N10: 2809.315371 | O10: 0.6914624414
N11: 5449.806368 | O11: 0.7733726774
N12: 8090.297364 | O12: 0.8413446868
N13: 13371.27936 | O13: 0.9331927206
N14: 18652.26135 | O14: 0.9772499073
